bitfinex-derivatives/quotes_SOLF0:USTF0_20251026
["timestamp","ask_amount","ask_price","bid_price","bid_amount"]
[1761452499164,3.93560639,193.32,193.24,2.65]
[1761452499365,3.93560639,193.34,193.24,2.65]
[1761452499569,3.93560639,193.33,193.24,2.65]
[1761452499760,3.93560639,193.32,193.24,2.65]
[1761452500060,3.93560639,193.34,193.24,2.65]
[1761452500261,3.93560639,193.33,193.24,2.65]
[1761452500464,3.93560639,193.32,193.24,2.65]
[1761452500662,3.93560639,193.34,193.24,2.65]
[1761452500862,3.93560639,193.33,193.24,2.65]
[1761452501156,3.93560639,193.32,193.24,2.65]
[1761452501363,3.93560639,193.34,193.24,2.65]
[1761452501564,3.93560639,193.33,193.24,2.65]
[1761452501766,3.93560639,193.32,193.24,2.65]
[1761452501964,3.93560639,193.34,193.24,2.65]
[1761452502167,3.93560639,193.33,193.24,2.65]
[1761452502367,3.93560639,193.32,193.24,2.65]
[1761452502565,3.93560639,193.34,193.24,2.65]
[1761452502864,3.93560639,193.33,193.24,2.65]
[1761452503065,3.93560639,193.32,193.24,2.65]
[1761452503264,3.93560639,193.34,193.24,2.65]
[1761452503465,3.93560639,193.33,193.24,2.65]
[1761452503656,3.93560639,193.32,193.24,2.65]
[1761452503855,119.84695375,193.35,193.12,15.50021333]
[1761452503856,66.19560639,193.31,193.19,2.67]
[1761452504064,3.93560639,193.3,193.19,2.67]
[1761452504260,3.93560639,193.29,193.19,2.67]
[1761452504463,3.93560639,193.28,193.19,2.67]
[1761452504664,3.93560639,193.3,193.19,2.67]
[1761452504867,3.93560639,193.29,193.19,2.67]
[1761452505071,3.93560639,193.28,193.19,2.67]
[1761452505266,3.93560639,193.3,193.19,2.67]
[1761452505468,3.93560639,193.29,193.19,2.67]
[1761452505669,3.93560639,193.28,193.19,2.67]
[1761452505871,3.93560639,193.27,193.19,2.67]
[1761452506065,3.93560639,193.3,193.15,2.67]
[1761452506266,3.93560639,193.29,193.15,2.67]
[1761452506564,3.93560639,193.28,193.15,2.67]
[1761452506764,3.93560639,193.27,193.15,2.67]
[1761452506964,3.93560639,193.3,193.15,2.67]
[1761452507263,3.93560639,193.29,193.15,2.67]
[1761452507464,3.93560639,193.28,193.15,2.67]
[1761452507662,3.93560639,193.3,193.15,2.67]
[1761452507864,3.93560639,193.29,193.15,2.67]
[1761452508170,3.93560639,193.28,193.15,2.67]
[1761452508368,3.93560639,193.3,193.15,2.67]
[1761452508665,3.93560639,193.29,193.15,2.67]
[1761452508866,3.93560639,193.28,193.15,2.67]
[1761452509058,3.93560639,193.3,193.15,2.67]
[1761452509363,3.93560639,193.29,193.15,2.67]
[1761452509562,3.93560639,193.3,193.15,2.67]
[1761452509770,3.93560639,193.29,193.15,2.67]
[1761452509969,3.93560639,193.3,193.15,2.67]
[1761452510171,3.93560639,193.29,193.15,2.67]
[1761452510370,3.93560639,193.3,193.15,2.67]
[1761452510671,3.93560639,193.29,193.15,2.67]
[1761452510973,3.93560639,193.3,193.15,2.67]
[1761452511162,3.93560639,193.29,193.15,2.67]
[1761452511465,3.93560639,193.3,193.15,2.67]
[1761452511771,3.93560639,193.29,193.15,2.67]
[1761452512070,3.93560639,193.3,193.15,2.67]
[1761452512271,3.93560639,193.29,193.15,2.67]
[1761452512470,3.93560639,193.3,193.15,2.67]
[1761452512672,3.93560639,193.29,193.15,2.67]
[1761452512873,3.93560639,193.3,193.15,2.67]
[1761452513168,3.93560639,193.29,193.15,2.67]
[1761452513373,3.93560639,193.3,193.15,2.67]
[1761452513562,3.93560639,193.29,193.15,2.67]
[1761452513762,3.93560639,193.3,193.15,2.67]
[1761452513967,3.93560639,193.29,193.15,2.67]
[1761452514164,3.93560639,193.3,193.15,2.67]
[1761452514371,3.93560639,193.29,193.15,2.67]
[1761452514571,3.93560639,193.3,193.15,2.67]
[1761452514773,3.93560639,193.29,193.15,2.67]
[1761452514972,3.93560639,193.3,193.15,2.67]
[1761452515169,3.93560639,193.29,193.15,2.67]
[1761452515474,3.93560639,193.3,193.15,2.67]
[1761452515673,3.93560639,193.29,193.15,2.67]
[1761452515874,3.93560639,193.3,193.15,2.67]
[1761452516073,3.93560639,193.29,193.15,2.67]
[1761452516273,3.93560639,193.3,193.15,2.67]
[1761452516470,3.93560639,193.29,193.15,2.67]
[1761452516769,3.93560639,193.3,193.15,2.67]
[1761452516970,3.93560639,193.29,193.15,2.67]
[1761452517171,3.93560639,193.3,193.15,2.67]
[1761452517371,3.93560639,193.29,193.15,2.67]
[1761452517676,3.93560639,193.3,193.15,2.67]
[1761452517871,3.93560639,193.29,193.15,2.67]
[1761452518072,3.93560639,193.3,193.15,2.67]
[1761452518274,3.93560639,193.29,193.15,2.67]
[1761452518477,3.93560639,193.3,193.15,2.67]
[1761452518668,3.93560639,193.29,193.15,2.67]
[1761452518875,3.93560639,193.3,193.15,2.67]
[1761452519075,3.93560639,193.29,193.15,2.67]
[1761452519376,3.93560639,193.28,193.15,2.67]
[1761452519578,3.93560639,193.3,193.15,2.67]
[1761452519767,3.93560639,193.29,193.15,2.67]
[1761452519970,3.93560639,193.3,193.15,2.67]
[1761452520171,3.93560639,193.29,193.15,2.67]
[1761452520370,3.93560639,193.3,193.15,2.67]
[1761452520567,3.93560639,193.29,193.15,2.67]
[1761452520871,3.93560639,193.3,193.15,2.67]
[1761452521071,3.93560639,193.29,193.15,2.67]
[1761452521372,3.93560639,193.3,193.15,2.67]
[1761452521573,3.93560639,193.29,193.15,2.67]
[1761452521874,3.93560639,193.3,193.15,2.67]
[1761452522181,3.93560639,193.29,193.15,2.67]
[1761452522476,3.93560639,193.28,193.15,2.67]
[1761452522779,3.93560639,193.3,193.15,2.67]
[1761452523077,3.93560639,193.29,193.15,2.67]
[1761452523278,3.93560639,193.28,193.15,2.67]
[1761452523575,3.93560639,193.3,193.15,2.67]
[1761452523780,3.93560639,193.29,193.15,2.67]
[1761452524078,3.93560639,193.28,193.15,2.67]
[1761452524278,3.93560639,193.3,193.15,2.67]
[1761452524477,3.93560639,193.29,193.15,2.67]
[1761452524681,3.93560639,193.28,193.15,2.67]
[1761452524874,3.93560639,193.3,193.15,2.67]
[1761452525177,3.93560639,193.29,193.15,2.67]
[1761452525378,2.35247745,193.31,193.15,2.67]
[1761452525379,3.93560639,193.28,193.15,2.67]
[1761452525676,3.93560639,193.3,193.15,2.67]
[1761452525877,3.93560639,193.29,193.15,2.67]
[1761452526078,3.93560639,193.28,193.15,2.67]
[1761452526383,3.93560639,193.3,193.15,2.67]
[1761452526679,1.50852315,193.27,193.16,1.50852315]
[1761452526880,1.50852315,193.27,193.17,2.68]
[1761452527079,5.44412954,193.27,193.17,2.68]
[1761452527282,1.50852315,193.27,193.17,2.68]
[1761452528180,5.44474238,193.27,193.17,2.68]
[1761452528381,1.50852315,193.27,193.17,2.68]
[1761452528581,5.44538077,193.3,193.2,2.83]
[1761452528773,3.93685762,193.29,193.2,2.83]
[1761452530276,1.50852315,193.3,193.2,2.83]
[1761452530277,3.93685762,193.28,193.2,2.83]
[1761452530475,3.93685762,193.29,193.2,2.83]
[1761452530676,3.93685762,193.28,193.2,2.83]
[1761452530877,3.93685762,193.29,193.2,2.83]
[1761452531078,3.93685762,193.28,193.2,2.83]
[1761452531381,3.93685762,193.29,193.2,2.83]
[1761452531584,3.93685762,193.28,193.2,2.83]
[1761452531782,3.93685762,193.29,193.2,2.83]
[1761452531982,3.93685762,193.28,193.2,2.83]
[1761452532184,1.50852315,193.3,193.2,2.83]
[1761452532383,3.94074548,193.29,193.2,2.83]
[1761452532583,3.94097946,193.28,193.2,2.83]
[1761452532882,3.94097946,193.27,193.2,2.83]
[1761452533083,3.94097946,193.29,193.2,2.83]
[1761452533281,3.94097946,193.28,193.2,2.83]
[1761452533474,3.94097946,193.27,193.2,2.83]
[1761452533677,3.94097946,193.29,193.2,2.83]
[1761452533879,3.94097946,193.28,193.2,2.83]
[1761452534081,3.94097946,193.27,193.2,2.83]
[1761452534288,1.50852315,193.3,193.2,2.83]
[1761452534488,3.94364715,193.29,193.2,2.83]
[1761452534689,3.94364715,193.28,193.2,2.83]
[1761452534881,3.94364715,193.27,193.2,2.83]
[1761452535089,1.50852315,193.3,193.2,2.83]
[1761452535281,3.94505568,193.29,193.2,2.83]
[1761452535481,3.94505568,193.28,193.2,2.83]
[1761452535689,3.94505568,193.27,193.2,2.83]
[1761452535886,1.50852315,193.3,193.2,2.83]
[1761452536189,8.76772812,193.29,193.2,2.83]
[1761452536385,3.94525585,193.28,193.2,2.83]
[1761452536586,3.94525585,193.27,193.2,2.83]
[1761452536785,3.94525585,193.26,193.2,2.83]
[1761452536987,3.94525585,193.25,193.2,2.83]
[1761452537284,4.82247227,193.29,193.2,2.83]
[1761452537485,3.94792945,193.28,193.2,2.83]
[1761452537691,3.94792945,193.27,193.2,2.83]
[1761452537987,3.94792945,193.26,193.2,2.83]
[1761452538188,3.94792945,193.25,193.2,2.83]
[1761452538388,4.82247227,193.29,193.2,2.83]
[1761452538589,3.94886408,193.28,193.2,2.83]
[1761452538888,3.94886408,193.27,193.2,2.83]
[1761452539090,3.94886408,193.26,193.2,2.83]
[1761452539292,3.94886408,193.25,193.2,2.83]
[1761452539493,3.94886408,193.24,193.2,2.83]
[1761452539688,4.82247227,193.29,193.2,2.83]
[1761452539895,3.94953915,193.28,193.2,2.83]
[1761452540094,3.94953915,193.27,193.2,2.83]
[1761452540292,3.94953915,193.26,193.2,2.83]
[1761452540493,3.94953915,193.25,193.2,2.83]
[1761452540693,3.94953915,193.24,193.2,2.83]
[1761452540893,4.82247227,193.29,193.2,2.83]
[1761452541096,3.95004792,193.28,193.2,2.83]
[1761452541400,3.95004792,193.27,193.2,2.83]
[1761452541600,3.95004792,193.26,193.2,2.83]
[1761452541800,3.95004792,193.25,193.2,2.83]
[1761452542000,3.95004792,193.24,193.2,2.83]
[1761452542201,4.82247227,193.28,193.2,2.83]
[1761452542397,3.95116323,193.27,193.2,2.83]
[1761452542595,3.95116323,193.26,193.2,2.83]
[1761452542801,3.95116323,193.25,193.2,2.83]
[1761452543100,3.95116323,193.24,193.2,2.83]
[1761452543290,4.82247227,193.28,193.2,2.83]
[1761452543496,3.95201537,193.27,193.2,2.83]
[1761452543697,3.95201537,193.26,193.2,2.83]
[1761452543896,3.95201537,193.25,193.2,2.83]
[1761452544104,3.95201537,193.24,193.2,2.83]
[1761452544308,4.82247227,193.28,193.2,2.83]
[1761452544502,3.95286329,193.27,193.2,2.83]
[1761452544700,3.95286329,193.26,193.2,2.83]
[1761452545003,3.95286329,193.25,193.2,2.83]
[1761452545204,4.82247227,193.29,193.2,2.83]
[1761452545205,3.95286329,193.24,193.2,2.83]
[1761452545402,4.82247227,193.29,193.2,2.83]
[1761452545603,3.9536426,193.28,193.2,2.83]
[1761452545904,3.9536426,193.27,193.2,2.83]
[1761452546203,3.9536426,193.26,193.2,2.83]
[1761452546502,3.9536426,193.25,193.2,2.83]
[1761452546695,3.9536426,193.24,193.2,2.83]
[1761452546892,4.82247227,193.28,193.2,2.83]
[1761452547202,3.95512926,193.27,193.2,2.83]
[1761452547404,3.95512926,193.26,193.2,2.83]
[1761452547606,3.95512926,193.25,193.2,2.83]
[1761452547806,3.95512926,193.24,193.2,2.83]
[1761452547999,3.95512926,193.23,193.2,2.83]
[1761452548199,4.82247227,193.27,193.2,2.83]
[1761452548400,3.959848,193.26,193.2,2.83]
[1761452548703,3.959848,193.25,193.2,2.83]
[1761452549001,3.959848,193.24,193.2,2.83]
[1761452549204,3.959848,193.23,193.2,2.83]
[1761452549499,4.82247227,193.27,193.2,2.83]
[1761452549700,3.95996356,193.26,193.2,2.83]
[1761452549896,3.95996356,193.25,193.2,2.83]
[1761452550096,3.95996356,193.24,193.2,2.83]
[1761452550303,3.95996356,193.23,193.2,2.83]
[1761452550502,4.82247227,193.27,193.2,2.83]
[1761452550697,3.96003571,193.26,193.2,2.83]
[1761452550901,3.96003571,193.25,193.2,2.83]
[1761452551102,3.96003571,193.24,193.2,2.83]
[1761452551302,3.96003571,193.23,193.2,2.83]
[1761452551497,4.82247227,193.27,193.2,2.83]
[1761452551709,3.96005073,193.26,193.2,2.83]
[1761452551907,3.96005073,193.25,193.2,2.83]
[1761452552108,3.96005073,193.24,193.2,2.83]
[1761452552401,4.82247227,193.29,193.2,2.83]
[1761452552604,3.95980518,193.28,193.2,2.83]
[1761452552805,3.95980518,193.27,193.2,2.83]
[1761452553003,6.46519271,193.32,193.2,2.83]
[1761452553004,3.95980518,193.26,193.2,2.83]
[1761452553205,3.95980518,193.25,193.23,2.83]
[1761452553404,4.82247227,193.3,193.23,2.83]
[1761452553609,3.95900282,193.29,193.23,2.83]
[1761452553809,3.95900282,193.28,193.23,2.83]
[1761452554002,3.95900282,193.27,193.23,2.83]
[1761452554203,3.95900282,193.26,193.23,2.83]
[1761452554407,3.95900282,193.25,193.23,2.83]
[1761452554607,4.82247227,193.29,193.23,2.83]
[1761452554806,3.95882727,193.28,193.23,2.83]
[1761452555008,3.95882727,193.27,193.23,2.83]
[1761452555212,3.95882727,193.26,193.23,2.83]
[1761452555408,3.95882727,193.25,193.23,2.83]
[1761452555608,4.82247227,193.29,193.23,2.83]
[1761452555808,3.95848161,193.28,193.23,2.83]
[1761452556009,3.95848161,193.27,193.23,2.83]
[1761452556307,3.95848161,193.26,193.23,2.83]
[1761452556509,3.95848161,193.25,193.23,2.83]
[1761452556712,4.82247227,193.29,193.23,2.83]
[1761452556911,3.95825321,193.28,193.23,2.83]
[1761452557112,3.95825321,193.27,193.23,2.83]
[1761452557413,3.95825321,193.26,193.23,2.83]
[1761452557606,3.95825321,193.25,193.23,2.83]
[1761452557806,4.82247227,193.29,193.23,2.83]
[1761452558005,3.95801978,193.28,193.23,2.83]
[1761452558209,3.95801978,193.27,193.23,2.83]
[1761452558406,3.95801978,193.26,193.23,2.83]
[1761452558717,3.95801978,193.25,193.23,2.83]
[1761452558917,4.82247227,193.29,193.23,2.83]
[1761452559118,3.95786108,193.28,193.23,2.83]
[1761452559319,4.82247227,193.29,193.23,2.83]
[1761452559320,3.95786108,193.27,193.23,2.83]
[1761452559515,3.95786108,193.26,193.23,2.83]
[1761452559814,3.95786108,193.25,193.23,2.83]
[1761452560016,4.82247227,193.29,193.23,2.83]
[1761452560216,3.95608545,193.28,193.23,2.83]
[1761452560418,3.95608545,193.27,193.23,2.83]
[1761452560718,3.95608545,193.26,193.23,2.83]
[1761452561015,3.95608545,193.25,193.23,2.83]
[1761452561215,4.82247227,193.29,193.23,2.83]
[1761452561415,3.95586169,193.28,193.23,2.83]
[1761452561616,3.95586169,193.27,193.23,2.83]
[1761452561811,3.95586169,193.26,193.23,2.83]
[1761452562007,3.95586169,193.25,193.23,2.83]
[1761452562211,4.82247227,193.29,193.23,2.83]
[1761452562508,3.95580874,193.28,193.23,2.83]
[1761452562712,3.95580874,193.27,193.23,2.83]
[1761452562915,3.95580874,193.26,193.23,2.83]
[1761452563216,3.95580874,193.25,193.23,2.83]
[1761452563517,4.82247227,193.29,193.23,2.83]
[1761452563818,3.95575486,193.28,193.23,2.83]
[1761452564017,3.95575486,193.27,193.23,2.83]
[1761452564317,3.95575486,193.26,193.23,2.83]
[1761452564519,3.95575486,193.25,193.23,2.83]
[1761452564719,4.82247227,193.29,193.23,2.83]
[1761452564907,3.95567693,193.28,193.23,2.83]
[1761452565212,3.95567693,193.27,193.23,2.83]
[1761452565407,3.95567693,193.26,193.23,2.83]
[1761452565618,3.95567693,193.25,193.23,2.83]
[1761452565818,4.82247227,193.29,193.23,2.83]
[1761452566007,3.95562236,193.28,193.23,2.83]
[1761452566207,3.95562236,193.27,193.23,2.83]
[1761452566412,3.95562236,193.26,193.23,2.83]
[1761452566609,3.95562236,193.25,193.23,2.83]
[1761452566810,4.82247227,193.3,193.23,2.83]
[1761452567015,3.95557199,193.29,193.23,2.83]
[1761452567222,3.95557199,193.28,193.23,2.83]
[1761452567417,3.95557199,193.27,193.23,2.83]
[1761452567719,3.95557199,193.26,193.23,2.83]
[1761452567918,3.95557199,193.25,193.23,2.83]
[1761452568120,4.82247227,193.3,193.23,2.83]
[1761452568320,3.95553769,193.29,193.23,2.83]
[1761452568515,3.95553769,193.28,193.23,2.83]
[1761452568721,3.95553769,193.27,193.23,2.83]
[1761452568921,3.95553769,193.26,193.23,2.83]
[1761452569124,3.95553769,193.25,193.23,2.83]
[1761452569326,4.82247227,193.3,193.23,2.83]
[1761452569524,3.95553479,193.29,193.23,2.83]
[1761452569723,3.95553479,193.28,193.24,2.78]
[1761452570022,3.95553479,193.27,193.24,2.78]
[1761452570226,3.95553479,193.26,193.24,2.78]
[1761452570426,4.82247227,193.3,193.24,2.78]
[1761452570427,3.95553479,193.25,193.24,2.78]
[1761452572626,4.82247227,193.3,193.24,2.78]
[1761452572830,3.95565074,193.29,193.24,2.78]
[1761452573030,3.95565074,193.28,193.24,2.78]
[1761452573330,3.95565074,193.27,193.24,2.78]
[1761452573530,3.95565074,193.26,193.24,2.78]
[1761452573728,4.82247227,193.3,193.24,2.78]
[1761452573924,3.95565058,193.29,193.24,2.78]
[1761452574129,3.95565058,193.28,193.24,2.78]
[1761452574331,4.82247227,193.33,193.24,2.78]
[1761452574525,3.9543356,193.32,193.24,2.78]
[1761452574726,3.9543356,193.31,193.24,2.78]
[1761452574927,3.9543356,193.3,193.26,1.50852315]
[1761452575122,124.66942602,193.35,193.27,2.78]
[1761452575322,3.95368566,193.34,193.29,1.50852315]
[1761452575523,3.95368566,193.33,193.3,2.78]
[1761452575830,3.95368566,193.32,193.3,2.78]
[1761452576029,119.84695375,193.35,193.3,2.78]
[1761452576230,3.95096987,193.34,193.3,2.78]
[1761452576431,3.95096987,193.33,193.3,2.78]
[1761452576731,119.84695375,193.35,193.3,2.78]
[1761452576928,3.94887235,193.34,193.3,2.78]
[1761452577126,3.94887235,193.33,193.3,2.78]
[1761452577326,119.84695375,193.35,193.3,2.78]
[1761452577527,3.94717433,193.34,193.3,2.78]
[1761452577818,3.94717433,193.33,193.3,2.78]
[1761452578025,119.84695375,193.35,193.3,2.78]
[1761452578227,3.94717505,193.34,193.3,2.78]
[1761452578423,3.94717505,193.33,193.3,2.78]
[1761452578620,119.84695375,193.35,193.3,2.78]
[1761452578834,5.45427412,193.34,193.3,2.78]
[1761452579131,3.94575097,193.33,193.3,2.78]
[1761452579333,1.50852315,193.34,193.3,2.78]
[1761452581832,1.50852315,193.32,193.21,2.63]
[1761452582133,1.50852315,193.3,193.21,2.63]
[1761452582436,119.84695375,193.35,193.23,2.63]
[1761452582437,1.50852315,193.32,193.23,2.63]
[1761452582925,1.50852315,193.32,193.23,7.287]
[1761452583127,1.50852315,193.32,193.24,2.63]
[1761452583932,4.82247227,193.37,193.23,2.63]
[1761452584135,5.4513169,193.36,193.26,2.63]
[1761452584435,1.50852315,193.36,193.26,2.63]
[1761452585137,1.50852315,193.36,193.27,2.63]
[1761452587339,5.4480495,193.36,193.27,2.63]
[1761452587539,1.50852315,193.36,193.27,2.63]
[1761452588635,5.44685406,193.36,193.27,2.63]
[1761452588830,2.35424668,193.39,193.27,2.63]
[1761452589031,3.93833091,193.38,193.27,2.63]
[1761452589227,3.93833091,193.37,193.27,2.63]
[1761452589430,3.90823254,193.36,193.27,2.63]
[1761452589631,3.90823254,193.38,193.27,2.63]
[1761452589837,3.90823254,193.37,193.27,2.63]
[1761452590136,3.90823254,193.36,193.27,2.63]
[1761452590339,3.90823254,193.38,193.27,2.63]
[1761452590638,3.90823254,193.37,193.27,2.63]
[1761452590835,3.90823254,193.36,193.27,2.63]
[1761452591037,3.90823254,193.38,193.27,2.63]
[1761452591339,6.26247922,193.37,193.27,2.63]
[1761452591540,3.90823254,193.36,193.27,2.63]
[1761452592432,2.35424668,193.37,193.27,2.63]
[1761452592433,3.90823254,193.35,193.27,2.63]
[1761452592633,3.90823254,193.36,193.27,2.63]
[1761452592932,3.90823254,193.35,193.27,2.63]
[1761452593133,3.90823254,193.36,193.27,2.63]
[1761452593336,3.90823254,193.35,193.27,2.63]
[1761452593534,3.90823254,193.36,193.27,2.63]
[1761452593735,3.90823254,193.35,193.27,2.63]
[1761452593936,3.90823254,193.36,193.27,2.63]
[1761452594141,3.90823254,193.35,193.27,2.63]
[1761452594340,3.90823254,193.36,193.27,2.63]
[1761452594538,3.90823254,193.35,193.27,2.63]
[1761452594739,3.90823254,193.36,193.27,2.63]
[1761452594940,2.35424668,193.37,193.27,2.63]
[1761452594941,3.90823254,193.35,193.27,2.63]
[1761452595144,3.90823254,193.36,193.27,2.63]
[1761452595440,3.90823254,193.35,193.27,2.63]
[1761452595647,3.90823254,193.36,193.27,2.63]
[1761452596537,3.90823254,193.36,193.29,2.75]
[1761452596736,4.82263439,193.41,193.29,2.75]
[1761452596737,2.35424668,193.37,193.29,2.75]
[1761452596943,3.90823254,193.36,193.29,2.75]
[1761452603040,2.35424668,193.37,193.29,2.75]
[1761452603239,2.35424668,193.4,193.29,2.75]
[1761452603443,3.90897698,193.39,193.29,2.75]
[1761452603640,3.90897698,193.38,193.29,2.75]
[1761452603942,3.90897698,193.37,193.29,2.75]
[1761452604145,3.90909132,193.36,193.29,2.75]
[1761452604345,3.90909132,193.39,193.29,2.75]
[1761452604640,3.90909132,193.38,193.29,2.75]
[1761452604942,3.90909132,193.37,193.29,2.75]
[1761452605143,3.90909132,193.36,193.29,2.75]
[1761452605336,3.90909132,193.39,193.29,2.75]
[1761452605537,3.90909132,193.38,193.29,2.75]
[1761452605742,3.90909132,193.37,193.29,2.75]
[1761452605944,3.90909132,193.36,193.29,2.75]
[1761452606242,3.90909132,193.39,193.29,2.75]
[1761452606440,3.90909132,193.38,193.29,2.75]
[1761452606640,3.90909132,193.37,193.29,2.75]
[1761452606841,3.90909132,193.36,193.29,2.75]
[1761452607041,3.90909132,193.39,193.29,2.75]
[1761452607342,3.90909132,193.38,193.29,2.75]
[1761452607548,3.90909132,193.37,193.29,2.75]
[1761452607738,3.90909132,193.36,193.29,2.75]
[1761452607939,3.90909132,193.39,193.29,2.75]
[1761452608135,3.90909132,193.38,193.29,2.75]
[1761452608340,3.90909132,193.37,193.29,2.75]
[1761452608542,3.90909132,193.36,193.29,2.75]
[1761452608742,2.35424668,193.4,193.29,2.75]
[1761452608945,3.91095871,193.39,193.29,2.75]
[1761452609147,3.91095871,193.38,193.29,2.75]
[1761452609346,3.91095871,193.37,193.29,2.75]
[1761452609542,3.91095871,193.36,193.29,2.75]
[1761452609739,7.17583204,193.4,193.29,2.75]
[1761452609935,3.91155685,193.39,193.29,2.75]
[1761452610147,3.91155685,193.38,193.29,2.75]
[1761452610341,3.91155685,193.37,193.29,2.75]
[1761452610541,3.91155685,193.36,193.29,2.75]
[1761452610743,7.17583204,193.4,193.29,2.75]
[1761452610943,3.91224389,193.39,193.29,2.75]
[1761452611145,3.91224389,193.38,193.29,2.75]
[1761452611342,3.91224389,193.37,193.29,2.75]
[1761452611545,3.91224389,193.36,193.29,2.75]
[1761452611747,7.17583204,193.4,193.29,2.75]
[1761452611948,3.91303041,193.39,193.29,2.75]
[1761452612148,3.91303041,193.38,193.29,2.75]
[1761452612347,3.91303041,193.37,193.29,2.75]
[1761452612548,3.91303041,193.36,193.29,2.75]
[1761452612845,3.91303041,193.35,193.29,2.75]
[1761452613042,7.17583204,193.4,193.29,2.75]
[1761452613341,3.91393066,193.39,193.29,2.75]
[1761452613542,3.91393066,193.38,193.29,2.75]
[1761452613739,3.91393066,193.37,193.29,2.75]
[1761452614048,3.91393066,193.36,193.29,2.75]
[1761452614243,3.91393066,193.35,193.29,2.75]
[1761452614448,4.82158536,193.39,193.29,2.75]
[1761452614644,3.91615493,193.38,193.29,2.75]
[1761452614943,3.91615493,193.37,193.29,2.75]
[1761452615246,3.91615493,193.36,193.29,2.75]
[1761452615447,3.91615493,193.35,193.29,2.75]
[1761452615647,4.82158536,193.39,193.29,2.75]
[1761452615847,3.91755374,193.38,193.29,2.75]
[1761452616043,3.91755374,193.37,193.29,2.75]
[1761452616239,7.17583204,193.4,193.29,2.75]
[1761452616240,3.91755374,193.36,193.29,2.75]
[1761452616442,3.91755374,193.35,193.29,2.75]
[1761452616646,4.82158536,193.39,193.29,2.75]
[1761452616847,3.91913026,193.38,193.29,2.75]
[1761452617145,3.91913026,193.37,193.29,2.75]
[1761452617345,3.91913026,193.36,193.29,2.75]
[1761452617542,3.91913026,193.35,193.29,2.75]
[1761452617746,4.82158536,193.39,193.29,2.75]
[1761452618052,3.92119668,193.38,193.29,2.75]
[1761452618351,3.92119668,193.37,193.29,2.75]
[1761452618545,3.92119668,193.36,193.29,2.75]
[1761452618744,3.92119668,193.35,193.29,2.75]
[1761452618945,3.92119668,193.34,193.29,2.75]
[1761452619150,4.82158536,193.38,193.29,2.75]
[1761452619347,3.92358277,193.37,193.29,2.75]
[1761452619546,3.92358277,193.36,193.29,2.75]
[1761452619747,3.92358277,193.35,193.29,2.75]
[1761452619948,3.92358277,193.34,193.29,2.75]
[1761452620148,4.82158536,193.38,193.29,2.75]
[1761452620348,3.92316017,193.37,193.29,2.75]
[1761452620548,3.92316017,193.36,193.29,2.75]
[1761452620751,3.92316017,193.35,193.29,2.75]
[1761452620948,3.92316017,193.34,193.29,2.75]
[1761452621148,4.82158536,193.38,193.29,2.75]
[1761452621353,3.92327136,193.37,193.29,2.75]
[1761452621549,3.92327136,193.36,193.29,2.75]
[1761452621749,3.92327136,193.35,193.29,2.75]
[1761452622051,3.92327136,193.34,193.29,2.75]
[1761452622350,4.82158536,193.38,193.29,2.75]
[1761452622650,3.92325029,193.37,193.29,2.75]
[1761452622850,3.92325029,193.36,193.29,2.75]
[1761452623051,3.92325029,193.35,193.29,2.75]
[1761452623253,3.92325029,193.34,193.29,2.75]
[1761452623451,4.82158536,193.38,193.29,2.75]
[1761452623644,3.92327574,193.37,193.29,2.75]